[Event "Asian Zonal 3.3 2019"]
[Site "Ulaanbaatar"]
[Date "2019.04.14"]
[Round "8.22"]
[White "Amgalanbaatar, Ravdanlkhumbuu"]
[Black "Erkhes, Bayartnar"]
[Result "0-1"]
[ECO "A00"]
[WhiteElo "2081"]
[BlackElo "1778"]
[Annotator "NA RC"]
[PlyCount "74"]
[EventDate "2019.04.07"]
[EventType "swiss"]
[EventRounds "9"]
[EventCountry "MGL"]
[SourceTitle "playchess.com"]
[Source "ChessBase"]
[SourceQuality "1"]
[TimeControl "40/5400+30:1800+30"]

1. d3 d5 2. Nd2 g6 3. e4 c6 4. c3 Bg7 5. Ngf3 Nf6 6. Be2 O-O 7. O-O Re8 8. e5 Nfd7 9. d4 c5 10. Re1 Nc6 11. Nf1 cxd4 12. cxd4 Qb6 13. Ng3 Nf8 14. h3 Ne6 15. Be3 Qxb2 16. Qa4 Qb6 17. Rab1 Qd8 18. Rec1 Nc7 19. Qc2 Ne6 20. h4 Rb8 21. h5 Bd7 22. Bd3 Rc8 23. Qd2 Na5 24. hxg6 hxg6 25. Rxc8 Bxc8 26. Bb5 Rf8 27. Ng5 a6 28. Bd3 b5 29. Nxe6 Bxe6 30. Bh6 Nc4 31. Bxc4 dxc4 32. Rd1 c3 33. Qe3 c2 34. Rc1 Bxh6 35. Qxh6 Qxd4 36. Nf1 Rc8 37. Ne3 Qd2 0-1

[Event "Asian Zonal 3.3 2019"]
[Site "Ulaanbaatar"]
[Date "2019.04.15"]
[Round "9.10"]
[White "Amartuvshin, Ganzorig"]
[Black "Itgelt, Khuyagtsogt"]
[Result "1-0"]
[ECO "A00"]
[WhiteElo "2373"]
[BlackElo "2056"]
[Annotator "RC"]
[PlyCount "53"]
[EventDate "2019.04.07"]
[EventType "swiss"]
[EventRounds "9"]
[EventCountry "MGL"]
[SourceTitle "playchess.com"]
[Source "ChessBase"]
[SourceQuality "1"]
[TimeControl "40/5400+30:1800+30"]

1. d4 Nf6 2. c4 e5 3. dxe5 Ng4 4. Bf4 Nc6 5. Nf3 Bb4+ 6. Bd2 Bc5 7. e3 O-O 8. Be2 Re8 9. O-O Ngxe5 10. Bc3 Nxf3+ 11. Bxf3 Ne5 12. Be2 a5 13. Nd2 Ra6 14. Ne4 Ba7 15. c5 Rh6 16. f4 Qh4 17. h3 Rg6 18. Bxe5 d6 19. Qa4 c6 20. f5 Rxe5 21. Nf6+ Qxf6 22. fxg6 Qg5 23. gxf7+ Kf8 24. Qxa5 Bxc5 25. Qa8 Rxe3 26. Kh1 Qd8 27. Bg4 1-0

[Event "Asian Zonal 3.3 2019"]
[Site "Ulaanbaatar"]
[Date "2019.04.15"]
[Round "9.22"]
[White "Erkhembayar, Tserentsoodol"]
[Black "Khuslen, Altan-Ochir"]
[Result "0-1"]
[ECO "A00"]
[WhiteElo "1757"]
[BlackElo "1927"]
[Annotator "NA RC"]
[PlyCount "96"]
[EventDate "2019.04.07"]
[EventType "swiss"]
[EventRounds "9"]
[EventCountry "MGL"]
[SourceTitle "playchess.com"]
[Source "ChessBase"]
[SourceQuality "1"]
[TimeControl "40/5400+30:1800+30"]

1. c4 c5 2. g3 Nc6 3. Bg2 g6 4. Nc3 Bg7 5. a3 e6 6. d3 Nge7 7. e4 O-O 8. Nge2 b6 9. O-O Bb7 10. Rb1 Nd4 11. Be3 d5 12. exd5 Nxe2+ 13. Nxe2 exd5 14. Bf4 Qc8 15. Bd6 Re8 16. Bxe7 Rxe7 17. cxd5 Rd7 18. Qb3 Qd8 19. Nf4 Be5 20. Ne6 fxe6 21. dxe6 Bd5 22. Bxd5 Rxd5 23. Rbe1 Qd6 24. Re3 Re8 25. Rfe1 Kh8 26. Rxe5 Rxe5 27. Qc3 R8xe6 28. f4 Qxd3 29. fxe5 Qxc3 30. bxc3 Kg7 31. Kf2 Kf7 32. Kf3 Re8 33. Ke4 Rd8 34. h4 Rd2 35. h5 Ke6 36. hxg6 hxg6 37. Re3 g5 38. Kf3 Kf5 39. Re1 Rd3+ 40. Ke2 Rxc3 41. Kd2 Rc4 42. e6 Rd4+ 43. Kc3 Rd8 44. Kc4 Kf6 45. g4 Ke7 46. Kb5 Rd4 47. Ka6 Ra4+ 48. Kb7 Rxa3 0-1

[Event "Asian Zonal 3.3 2019"]
[Site "Ulaanbaatar"]
[Date "2019.04.15"]
[Round "9.23"]
[White "Danzanjunai, Ganbat"]
[Black "Amgalanbaatar, Ravdanlkhumbuu"]
[Result "1/2-1/2"]
[ECO "A00"]
[WhiteElo "1608"]
[BlackElo "2081"]
[Annotator "NA RC"]
[PlyCount "39"]
[EventDate "2019.04.07"]
[EventType "swiss"]
[EventRounds "9"]
[EventCountry "MGL"]
[SourceTitle "playchess.com"]
[Source "ChessBase"]
[SourceQuality "1"]
[TimeControl "40/5400+30:1800+30"]

1. d4 d5 2. Bf4 Nf6 3. e3 e6 4. Nd2 c5 5. c3 Nc6 6. Ngf3 Bd6 7. Bg3 O-O 8. Bd3 Qe7 9. Ne5 Nd7 10. Nxd7 Bxd7 11. Bxd6 Qxd6 12. dxc5 Qxc5 13. Bxh7+ Kxh7 14. Qh5+ Kg8 15. Ne4 Qb5 16. Ng5 Rfe8 17. Qxf7+ Kh8 18. Qh5+ Kg8 19. Qf7+ Kh8 20. Qh5+ 1/2-1/2